bitfinex-derivatives/quotes_BTCF0:USTF0_20241110
["timestamp","ask_amount","ask_price","bid_price","bid_amount"]
[1731273337791,9.893e-05,79171.0,79170.0,0.56916128]
[1731273337987,0.063073,79238.0,79170.0,0.56916128]
[1731273337988,0.3608,79215.0,79170.0,1.05805752]
[1731273338192,0.3608,79223.0,79201.0,0.3608]
[1731273338417,0.3608,79223.0,79204.0,0.28201325]
[1731273338418,0.3608,79213.0,79204.0,0.28201325]
[1731273338592,0.3608,79223.0,79204.0,0.28201325]
[1731273338788,0.3608,79223.0,79205.0,0.37846366]
[1731273339100,0.3608,79206.0,79205.0,0.37846366]
[1731273339395,0.3608,79206.0,79181.0,0.28201325]
[1731273339600,0.3608,79189.0,79171.0,0.28201325]
[1731273339791,0.3608,79189.0,79171.0,0.30729037]
[1731273340188,0.3608,79189.0,79186.0,0.18871083]
[1731273340396,0.3608,79204.0,79186.0,0.18871083]
[1731273340902,0.28201325,79236.0,79182.0,0.18871083]
[1731273340903,0.3608,79189.0,79182.0,0.18871083]
[1731273341105,0.3608,79189.0,79170.0,0.28212723]
[1731273341293,0.3608,79172.0,79170.0,0.00011398]
[1731273341496,0.3608,79172.0,79170.0,0.28212723]
[1731273341700,0.28201325,79214.0,79170.0,0.28212723]
[1731273341701,0.063101,79202.0,79171.0,0.21402707]
[1731273342000,0.3608,79192.0,79180.0,0.28201325]
[1731273342304,0.3608,79192.0,79181.0,0.18967578]
[1731273342599,0.28201325,79225.0,79171.0,0.44992212]
[1731273342600,0.3608,79216.0,79191.0,0.64281325]
[1731273342789,0.3608,79209.0,79191.0,0.28201325]
[1731273343102,0.3608,79216.0,79192.0,0.55067204]
[1731273343397,0.3608,79208.0,79201.0,0.28201325]
[1731273343789,0.3608,79208.0,79202.0,0.18987204]
[1731273344391,0.3608,79203.0,79202.0,0.18987204]
[1731273344598,0.3608,79212.0,79202.0,0.18987204]
[1731273344901,0.3608,79204.0,79201.0,0.18836595]
[1731273345103,0.3608,79204.0,79189.0,0.28201325]
[1731273345297,0.3608,79196.0,79192.0,0.18934274]
[1731273345498,0.3608,79195.0,79176.0,0.00189451]
[1731273345698,0.3608,79183.0,79182.0,0.18934274]
[1731273345997,0.3608,79183.0,79182.0,0.02526637]
[1731273346300,0.3608,79183.0,79182.0,0.21528639]
[1731273346491,0.28201325,79227.0,79183.0,0.063116]
[1731273346492,0.3608,79192.0,79183.0,0.063116]
[1731273346693,0.3608,79205.0,79189.0,0.3608]
[1731273346893,0.6608,79205.0,79184.0,0.19002002]
[1731273347098,0.3608,79197.0,79185.0,0.3608]
[1731273347405,0.3608,79197.0,79186.0,0.19063769]
[1731273347900,0.3608,79205.0,79186.0,0.19063769]
[1731273348204,0.3608,79205.0,79182.0,0.02526637]
[1731273348205,0.3608,79193.0,79182.0,0.02526637]
[1731273348501,6.466e-05,79183.0,79182.0,0.02526637]
[1731273348805,6.466e-05,79183.0,79172.0,0.7669]
[1731273348806,0.36086466,79183.0,79172.0,0.7669]
[1731273349103,0.3608,79179.0,79172.0,0.7669]
[1731273349507,0.3608,79180.0,79172.0,0.7669]
[1731273349702,0.00011917,79182.0,79178.0,0.28201325]
[1731273350011,0.00011917,79182.0,79181.0,0.063118]
[1731273350198,0.3608,79194.0,79191.0,0.063109]
[1731273350399,0.104,79233.0,79182.0,0.063117]
[1731273350400,0.3608,79217.0,79182.0,0.063117]
[1731273350713,0.3608,79217.0,79193.0,0.3608]
[1731273350714,0.10548177,79204.0,79193.0,0.3608]
[1731273351005,0.063101,79202.0,79193.0,0.3608]
[1731273351306,0.04246129,79201.0,79200.0,0.3608]
[1731273351504,0.00012485,79201.0,79200.0,0.3608]
[1731273352698,0.00012485,79201.0,79200.0,0.64281325]
[1731273352905,0.00012485,79201.0,79200.0,0.83328368]
[1731273353204,0.423861,79253.0,79224.0,0.063083]
[1731273353435,0.423861,79253.0,79228.0,0.3608]
[1731273353436,0.3608,79253.0,79228.0,0.3608]
[1731273353708,0.063047,79270.0,79242.0,0.063069]
[1731273353900,0.1067,79273.0,79254.0,0.3608]
[1731273353901,0.4067,79273.0,79254.0,0.3608]
[1731273354202,0.4067,79273.0,79245.0,0.3608]
[1731273354203,0.063052,79264.0,79245.0,0.3608]
[1731273354404,0.063052,79264.0,79246.0,0.3608]
[1731273354405,0.04522279,79263.0,79246.0,0.3608]
[1731273354707,0.363052,79264.0,79246.0,0.3608]
[1731273354904,0.04539073,79263.0,79246.0,0.3608]
[1731273355205,0.04539073,79262.0,79250.0,0.28201325]
[1731273355507,0.04539073,79262.0,79256.0,0.3608]
[1731273355508,0.063053,79262.0,79256.0,0.3608]
[1731273355708,0.363053,79262.0,79256.0,0.3608]
[1731273356008,0.00014691,79272.0,79256.0,0.3608]
[1731273356204,0.00014691,79272.0,79253.0,0.28201325]
[1731273356205,0.04522414,79271.0,79253.0,0.28201325]
[1731273356393,0.063053,79262.0,79253.0,0.3608]
[1731273356593,0.063055,79261.0,79253.0,0.3608]
[1731273357005,0.063059,79255.0,79253.0,0.3608]
[1731273357305,0.063062,79251.0,79243.0,0.00015302]
[1731273357495,0.063067,79245.0,79243.0,0.00015302]
[1731273357697,0.063076,79234.0,79219.0,0.3667]
[1731273357896,0.3608,79242.0,79219.0,0.36144]
[1731273358096,0.37864,79244.0,79219.0,0.3608]
[1731273358097,0.063073,79238.0,79219.0,0.3608]
[1731273358303,0.00189389,79254.0,79237.0,0.3608]
[1731273358504,0.00189389,79254.0,79228.0,0.64281325]
[1731273358505,0.00189389,79254.0,79246.0,0.3608]
[1731273358805,0.00011413,79253.0,79246.0,0.3608]
[1731273358994,0.00011413,79253.0,79246.0,0.7216]
[1731273359192,0.00011413,79253.0,79247.0,0.1899386]
[1731273360303,0.00011413,79253.0,79246.0,0.72224]
[1731273360506,0.00011413,79253.0,79240.0,0.00015284]
[1731273360507,0.06307,79241.0,79240.0,0.00015284]
[1731273360705,0.42298579,79252.0,79240.0,0.00015284]
[1731273360706,0.063062,79251.0,79240.0,0.00015284]
[1731273360907,0.04396522,79250.0,79240.0,0.00015284]
[1731273361107,0.04396522,79249.0,79240.0,0.00015284]
[1731273361404,0.00011413,79253.0,79246.0,0.3608]
[1731273361705,0.3608,79249.0,79240.0,0.00015284]
[1731273361901,0.06307,79241.0,79240.0,0.00015284]
[1731273362109,0.04312174,79241.0,79217.0,0.02526603]
[1731273362405,0.423879,79230.0,79218.0,0.3608]
[1731273362708,0.063071,79239.0,79218.0,0.61423406]
[1731273362899,0.04303492,79238.0,79229.0,0.3608]
[1731273363099,0.04303492,79237.0,79229.0,0.3608]
[1731273363310,0.3608,79259.0,79237.0,0.3608]
[1731273363311,0.063056,79259.0,79237.0,0.3608]
[1731273363605,0.063056,79259.0,79230.0,0.47124234]
[1731273363606,0.09284399,79252.0,79230.0,0.00072]
[1731273363812,0.063079,79230.0,79228.0,0.00010468]
[1731273363998,0.40408589,79229.0,79228.0,0.00010468]
[1731273364310,0.40408589,79229.0,79204.0,0.0059]
[1731273364311,0.78272589,79229.0,79204.0,0.0059]
[1731273364520,0.063093,79213.0,79200.0,0.00189396]
[1731273365012,0.063102,79201.0,79195.0,0.3608]
[1731273365218,0.00013699,79200.0,79191.0,0.0001562]
[1731273365906,0.00013699,79200.0,79192.0,0.18897308]
[1731273366105,0.00013699,79200.0,79191.0,0.02542043]
[1731273366308,0.04112727,79199.0,79191.0,0.0001562]
[1731273366610,0.063105,79197.0,79191.0,0.0001562]
[1731273366808,0.063106,79196.0,79191.0,0.0001562]
[1731273367004,0.3608,79198.0,79191.0,0.0001562]
[1731273367405,0.00013699,79200.0,79192.0,0.54926767]
[1731273369602,0.063084,79224.0,79205.0,0.063098]
[1731273369809,0.063077,79232.0,79214.0,0.28201325]
[1731273370110,0.063083,79224.0,79215.0,0.19057632]
[1731273370307,0.063079,79230.0,79215.0,0.19057632]
[1731273370503,0.3608,79233.0,79225.0,0.28201325]
[1731273370810,0.10566,79253.0,79225.0,0.28201325]
[1731273370811,0.00016105,79226.0,79225.0,0.28201325]
[1731273371206,0.00016105,79226.0,79225.0,0.47150419]
[1731273371715,0.00016105,79226.0,79215.0,0.03766195]
[1731273371716,0.00016105,79226.0,79215.0,0.3196752]
[1731273371908,0.00016105,79226.0,79217.0,0.3608]
[1731273372110,0.00016105,79226.0,79225.0,0.28201325]
[1731273372501,0.00016105,79226.0,79223.0,0.28201325]
[1731273373119,0.00016105,79226.0,79225.0,0.3608]
[1731273373417,0.3608,79267.0,79236.0,0.063073]
[1731273373618,0.3608,79267.0,79244.0,0.28201325]
[1731273373806,0.72448,79264.0,79252.0,0.3608]
[1731273374114,0.72448,79264.0,79245.0,0.18872494]
[1731273374307,0.00014023,79263.0,79245.0,0.3608]
[1731273374503,0.00014023,79263.0,79246.0,0.18920209]
[1731273374705,0.00014023,79263.0,79240.0,0.00010582]
[1731273374908,0.063059,79255.0,79244.0,0.64281325]
[1731273375112,0.00014023,79263.0,79251.0,0.3608]
[1731273375306,0.063055,79260.0,79251.0,0.3608]
[1731273375505,0.00014023,79263.0,79251.0,0.3608]
[1731273375816,0.063058,79257.0,79245.0,0.3608]
[1731273376206,0.063058,79257.0,79245.0,0.55093463]
[1731273376514,0.00014023,79263.0,79252.0,0.3608]
[1731273376817,0.00014023,79263.0,79262.0,0.3608]
[1731273377024,0.00014023,79263.0,79255.0,0.28201325]
[1731273377025,0.00014023,79263.0,79259.0,0.3608]
[1731273377211,0.00014023,79263.0,79249.0,0.3608]
[1731273377212,0.00014023,79263.0,79245.0,0.64281325]
[1731273377412,0.063066,79246.0,79241.0,0.02526383]
[1731273377719,0.3608,79253.0,79241.0,0.02526383]
[1731273377911,0.063069,79243.0,79241.0,0.02526383]
[1731273378215,0.06307,79241.0,79218.0,0.0059]
[1731273378418,0.3608,79238.0,79215.0,0.3608]
[1731273378613,0.063078,79231.0,79219.0,0.18966288]
[1731273378916,0.3608,79238.0,79217.0,0.18966288]
[1731273378917,0.063079,79230.0,79217.0,0.18966288]
[1731273379118,0.063079,79230.0,79226.0,0.3608]
[1731273379324,0.063072,79239.0,79226.0,0.3608]
[1731273379512,0.3608,79245.0,79234.0,0.28201325]
[1731273379712,0.0018942,79254.0,79244.0,0.64281325]
[1731273379920,0.0018942,79254.0,79253.0,0.3608]
[1731273381612,0.0018942,79254.0,79253.0,0.55082359]
[1731273381916,0.063049,79267.0,79254.0,0.28201325]
[1731273382317,0.063049,79267.0,79255.0,0.18921098]
[1731273383218,0.063044,79273.0,79255.0,0.18921098]
[1731273383432,0.3608,79278.0,79262.0,0.3608]
[1731273383625,0.06493221,79280.0,79262.0,0.3608]
[1731273383626,0.00189321,79280.0,79262.0,0.3608]
[1731273383924,0.06304,79279.0,79262.0,0.55099462]
[1731273384310,0.04510331,79278.0,79274.0,0.3608]
[1731273384628,0.04510331,79277.0,79274.0,0.3608]
[1731273384816,0.00189321,79280.0,79274.0,0.3608]
[1731273385123,0.04533725,79279.0,79274.0,0.3608]
[1731273385324,0.04519119,79278.0,79274.0,0.3608]
[1731273385512,0.00014606,79279.0,79274.0,0.3608]
[1731273385714,0.00014606,79279.0,79253.0,0.0059]
[1731273385715,0.063045,79272.0,79262.0,0.3608]
[1731273385925,0.30014606,79279.0,79262.0,0.3608]
[1731273386122,0.063048,79269.0,79262.0,0.3608]
[1731273386313,0.063049,79268.0,79262.0,0.3608]
[1731273386923,0.00014606,79279.0,79262.0,0.3608]
[1731273386924,0.063041,79278.0,79262.0,0.3608]
[1731273387128,0.04479454,79277.0,79270.0,0.3608]
[1731273387421,0.063021,79302.0,79289.0,0.063031]
[1731273387614,0.063023,79301.0,79296.0,0.3608]
[1731273387822,0.063025,79298.0,79296.0,0.3608]
[1731273388020,0.063025,79298.0,79289.0,0.3608]
[1731273388423,0.00011824,79297.0,79289.0,0.3608]
[1731273389221,0.00011824,79297.0,79296.0,0.3608]
[1731273389830,0.00011824,79297.0,79289.0,0.424551]
[1731273390030,0.00011824,79297.0,79296.0,0.3608]
[1731273391432,0.00011824,79297.0,79296.0,0.54983405]
[1731273391637,0.063014,79311.0,79297.0,0.063025]
[1731273391930,0.063005,79324.0,79309.0,0.063015]
[1731273392125,0.42693246,79335.0,79318.0,0.3608]
[1731273392126,0.063005,79323.0,79318.0,0.3608]
[1731273392619,0.00014145,79322.0,79318.0,0.3608]
[1731273393719,0.3782,79321.0,79301.0,0.3608]
[1731273393922,0.66094145,79322.0,79310.0,0.00064]
[1731273393923,0.063015,79311.0,79310.0,0.00064]
[1731273394225,0.3608,79315.0,79293.0,0.00189161]
[1731273394531,0.063033,79288.0,79286.0,9.396e-05]
[1731273394728,0.063031,79290.0,79286.0,9.396e-05]
[1731273394924,0.063023,79301.0,79289.0,0.28201325]
[1731273395119,0.063024,79299.0,79289.0,0.28201325]
[1731273395321,0.06490763,79311.0,79298.0,0.3608]
[1731273395522,0.00189263,79311.0,79298.0,0.3608]
[1731273395831,0.063022,79301.0,79299.0,0.3608]
[1731273396028,0.063022,79301.0,79289.0,0.3608]
[1731273396226,0.00189263,79311.0,79291.0,0.18864016]
[1731273396426,0.063017,79307.0,79300.0,0.28201325]
[1731273396628,0.063017,79307.0,79297.0,0.3608]
[1731273397037,0.00189263,79311.0,79298.0,0.18864016]
[1731273397335,0.00189263,79311.0,79309.0,0.063015]
[1731273397524,0.00189263,79311.0,79308.0,0.3608]
[1731273397719,0.00189263,79311.0,79310.0,0.18998174]
[1731273397925,0.00189263,79311.0,79308.0,0.3608]
[1731273397926,0.00189263,79311.0,79309.0,0.18998174]
[1731273398120,0.063005,79323.0,79311.0,0.28201325]
[1731273398321,0.063005,79323.0,79308.0,0.3608]
[1731273398322,0.42568746,79335.0,79321.0,0.28201325]
[1731273398525,0.42568746,79335.0,79312.0,0.18860124]
[1731273398526,0.063013,79313.0,79312.0,0.18860124]
[1731273398736,0.00014145,79322.0,79304.0,0.063019]
[1731273399033,0.00014145,79322.0,79311.0,0.18860124]
[1731273399034,0.06314745,79322.0,79311.0,0.18860124]
[1731273399231,0.00014145,79322.0,79310.0,0.063014]
[1731273399431,0.00014145,79322.0,79312.0,0.18953464]
[1731273399629,0.00014145,79322.0,79318.0,0.3608]
[1731273399835,0.063007,79321.0,79311.0,0.18953464]
[1731273400030,0.00014145,79322.0,79308.0,0.3608]
[1731273400224,0.063011,79316.0,79303.0,0.02523775]
[1731273400425,0.063014,79312.0,79303.0,0.02523775]
[1731273400636,0.063014,79312.0,79304.0,0.18965171]
[1731273401431,0.063007,79320.0,79308.0,0.3608]
[1731273401822,0.0445907,79319.0,79309.0,0.19010511]
[1731273402032,0.00014145,79322.0,79309.0,0.25312011]
[1731273402226,0.04471392,79321.0,79311.0,0.063014]
[1731273402423,0.04471392,79321.0,79309.0,0.19010511]
[1731273402424,0.00014145,79322.0,79316.0,0.3608]
[1731273402739,0.3608,79349.0,79321.0,0.3608]
[1731273402941,0.04581669,79348.0,79344.0,0.28201325]
[1731273403236,0.04581669,79347.0,79346.0,0.062986]
[1731273403534,0.062985,79348.0,79344.0,0.28201325]
[1731273403737,0.00014332,79347.0,79345.0,0.3608]
[1731273404031,0.062986,79346.0,79338.0,0.00010688]
[1731273404227,0.062991,79340.0,79338.0,0.00010688]
[1731273404427,0.00014332,79347.0,79343.0,0.28201325]
[1731273404632,0.00014332,79347.0,79346.0,0.3608]
[1731273405235,0.00014332,79347.0,79346.0,0.54863721]
[1731273405531,0.00014332,79347.0,79346.0,0.92671721]
[1731273406328,0.3608,79367.0,79349.0,0.062984]
[1731273406527,0.04698444,79366.0,79355.0,0.3608]
[1731273406734,0.062975,79361.0,79350.0,0.18960461]
[1731273407038,0.3608,79351.0,79339.0,0.02523633]
[1731273407236,0.062988,79344.0,79339.0,0.02523633]
[1731273407429,0.00016366,79343.0,79339.0,0.02523633]
[1731273408234,0.06299,79342.0,79340.0,0.3608]
[1731273408443,0.062992,79339.0,79338.0,0.00010688]
[1731273408736,0.10861376,79339.0,79326.0,0.00928389]
[1731273408940,0.063004,79324.0,79322.0,0.00261098]
[1731273409128,0.063004,79324.0,79322.0,0.00189098]
[1731273409331,0.3782,79323.0,79299.0,0.0059]
[1731273409534,0.063027,79296.0,79287.0,0.0059]
[1731273409725,0.28696,79300.0,79280.0,0.02523244]
[1731273409932,0.063032,79289.0,79280.0,0.02523244]
[1731273410227,0.00010235,79295.0,79280.0,0.02523244]
[1731273410437,0.00010235,79295.0,79292.0,0.3608]
[1731273410827,0.28696,79320.0,79314.0,0.03770526]
[1731273411031,0.063012,79314.0,79293.0,0.0059]
[1731273411230,0.28201325,79304.0,79282.0,0.0059]
[1731273411527,0.28201325,79304.0,79279.0,0.36089207]
[1731273411528,0.063039,79280.0,79279.0,0.36089207]
[1731273411739,0.3608,79293.0,79279.0,0.36089207]
[1731273411740,0.4238,79293.0,79279.0,0.36089207]
[1731273411938,0.4238,79293.0,79288.0,0.3608]
[1731273411939,0.063032,79289.0,79288.0,0.3608]
[1731273412129,0.063032,79289.0,79279.0,0.36089207]
[1731273412130,0.063039,79280.0,79279.0,0.36089207]
[1731273412331,0.063031,79291.0,79279.0,0.36089207]
[1731273412633,0.063031,79291.0,79290.0,0.3608]
[1731273413032,0.11110872,79291.0,79290.0,0.3608]
[1731273413532,0.11135246,79291.0,79290.0,0.3608]
[1731273413735,0.04832146,79291.0,79290.0,0.3608]
[1731273414330,0.00013681,79292.0,79290.0,0.3608]
[1731273414938,0.00013681,79292.0,79291.0,0.3608]
[1731273415943,0.063039,79280.0,79279.0,9.207e-05]
[1731273416332,0.48993867,79280.0,79279.0,9.207e-05]
[1731273416732,0.42689967,79280.0,79270.0,0.35702067]
[1731273416931,0.063046,79271.0,79270.0,0.3608]
[1731273417134,0.11101649,79271.0,79270.0,0.3608]
[1731273417346,0.11101649,79271.0,79270.0,0.22194459]
[1731273417534,0.3608,79276.0,79260.0,0.3608]
[1731273417740,0.063047,79270.0,79260.0,0.3608]
[1731273418042,0.06305,79267.0,79260.0,0.3608]
[1731273418243,0.04571278,79266.0,79260.0,0.3608]
[1731273418446,0.3608,79283.0,79264.0,0.3608]
[1731273418447,0.06304,79279.0,79264.0,0.3608]
[1731273418651,0.45836055,79278.0,79264.0,0.3608]
[1731273418840,0.04558963,79277.0,79264.0,0.3608]
[1731273419141,0.063049,79268.0,79264.0,0.3608]
[1731273419340,0.063042,79276.0,79264.0,0.3608]
[1731273419540,0.063046,79271.0,79264.0,0.3608]
[1731273419742,0.0454945,79270.0,79264.0,0.3608]
[1731273419950,0.063048,79269.0,79264.0,0.3608]
[1731273420245,0.063047,79270.0,79264.0,0.3608]
[1731273420644,0.3608,79278.0,79264.0,0.3608]
[1731273420972,0.063059,79255.0,79254.0,0.00015846]
[1731273421135,0.06318699,79255.0,79254.0,0.00015846]
[1731273421440,0.063071,79240.0,79230.0,0.0059]
[1731273421641,0.3608,79245.0,79229.0,0.02524263]
[1731273421845,0.28201325,79242.0,79227.0,0.3608]
[1731273422037,0.06308,79229.0,79227.0,0.3608]
[1731273422238,0.3608,79237.0,79220.0,0.3608]
[1731273422541,0.3608,79252.0,79228.0,0.3608]
[1731273422542,0.3608,79245.0,79228.0,0.3608]
[1731273422744,0.063068,79244.0,79228.0,0.3608]
[1731273422933,0.06307,79241.0,79228.0,0.3608]
[1731273423549,0.3608,79245.0,79228.0,0.3608]
[1731273423848,0.28201325,79231.0,79212.0,0.0059]
[1731273424035,0.063089,79218.0,79205.0,0.3608]
[1731273424345,0.063085,79223.0,79205.0,0.3608]
[1731273424743,0.063085,79222.0,79205.0,0.3608]
[1731273424944,0.063066,79246.0,79225.0,0.063082]
[1731273425140,0.04291098,79239.0,79231.0,0.3608]
[1731273425348,0.278,79250.0,79239.0,0.3608]
[1731273426141,0.06307,79241.0,79239.0,0.3608]
[1731273426651,0.06307,79241.0,79216.0,0.0059]
[1731273426652,0.7394,79240.0,79216.0,0.0059]
[1731273426948,0.063091,79215.0,79207.0,0.3608]
[1731273427245,0.3608,79228.0,79207.0,0.36144]
[1731273427445,0.01342636,79221.0,79216.0,0.3608]
[1731273427847,0.01342636,79221.0,79220.0,0.3608]
[1731273428148,0.01342636,79221.0,79220.0,0.423886]
[1731273428749,0.01342636,79221.0,79220.0,0.9912761]
[1731273428949,0.00189403,79255.0,79232.0,0.28201325]
[1731273429249,0.00265403,79255.0,79254.0,0.7216]
[1731273429543,0.3608,79292.0,79254.0,0.7216]
[1731273429745,0.4711,79300.0,79280.0,0.3608]
[1731273429746,0.1056,79294.0,79280.0,0.3608]
[1731273429946,0.00010028,79290.0,79280.0,0.3608]
[1731273430145,0.37846028,79290.0,79271.0,0.00015848]
[1731273430341,0.063043,79275.0,79271.0,0.00015848]
[1731273430551,0.063045,79273.0,79271.0,0.00015848]
[1731273431351,0.3608,79283.0,79271.0,0.00015848]
[1731273431657,0.3608,79283.0,79276.0,0.3608]
[1731273431853,0.00010028,79290.0,79276.0,0.3608]
[1731273432146,0.063033,79287.0,79276.0,0.3608]
[1731273432349,0.3608,79288.0,79276.0,0.3608]
[1731273432549,0.28201325,79285.0,79271.0,0.00015848]
[1731273432749,0.3784,79287.0,79252.0,0.00779254]
[1731273432750,0.063053,79263.0,79252.0,0.00779254]
[1731273433051,0.06306,79254.0,79252.0,0.00189254]
[1731273433239,0.278,79264.0,79252.0,0.00189254]
[1731273433441,0.278,79264.0,79256.0,0.3608]
[1731273433442,0.063052,79264.0,79256.0,0.3608]
[1731273433645,0.278,79279.0,79256.0,0.3608]
[1731273433844,0.063047,79271.0,79256.0,0.3608]
[1731273434046,0.578,79279.0,79256.0,0.3608]
[1731273434250,0.063053,79262.0,79256.0,0.3608]
[1731273434552,0.063057,79258.0,79248.0,0.00015495]
[1731273435845,0.00173286,79253.0,79248.0,0.00015495]
[1731273436348,9.023e-05,79252.0,79248.0,6.206e-05]
[1731273436657,0.3608,79287.0,79251.0,0.423862]
[1731273436860,0.063034,79287.0,79274.0,0.3608]
[1731273437160,0.26752,79288.0,79274.0,0.3608]
[1731273437642,0.26752,79288.0,79273.0,0.063044]
[1731273437846,0.00202616,79275.0,79274.0,0.3608]
[1731273438153,0.00013263,79275.0,79274.0,0.3608]
[1731273438648,0.00013263,79275.0,79213.0,0.063092]
[1731273438649,0.00013263,79275.0,79264.0,0.3608]
[1731273438954,0.00013263,79275.0,79247.0,0.28201325]
[1731273438955,0.0459292,79274.0,79271.0,0.3608]
[1731273439156,0.0459292,79273.0,79271.0,0.3608]
[1731273439357,0.0459292,79272.0,79271.0,0.3608]
[1731273440059,0.00013263,79275.0,79273.0,0.063044]
[1731273440261,0.28201325,79330.0,79294.0,0.28201325]
[1731273440262,0.063001,79327.0,79294.0,0.28201325]
[1731273440460,0.2163,79330.0,79320.0,0.3608]
[1731273440461,0.09980755,79326.0,79320.0,0.3608]
[1731273440750,0.09620591,79325.0,79320.0,0.3608]
[1731273440962,0.09620591,79324.0,79320.0,0.3608]
[1731273441149,0.26752,79334.0,79320.0,0.3608]
[1731273441150,0.09632481,79323.0,79320.0,0.3608]
[1731273441347,0.04498318,79322.0,79320.0,0.3608]
[1731273441543,0.04498318,79321.0,79320.0,0.3608]
[1731273441750,0.0001189,79323.0,79320.0,0.3608]
[1731273441948,0.04641634,79322.0,79320.0,0.3608]
[1731273442156,0.0001189,79323.0,79321.0,0.28201325]
[1731273442349,0.062981,79353.0,79322.0,0.063005]
[1731273442556,0.04706517,79345.0,79333.0,0.3608]
[1731273442847,0.04706517,79344.0,79330.0,0.3608]
[1731273443056,0.06487794,79346.0,79330.0,0.3608]
[1731273443057,0.04706517,79343.0,79330.0,0.3608]
[1731273443244,0.04706517,79342.0,79330.0,0.3608]
[1731273443446,0.06487794,79346.0,79330.0,0.3608]
[1731273443447,0.00012645,79341.0,79330.0,0.3608]
[1731273444352,0.062994,79337.0,79330.0,0.3608]
[1731273444561,0.062995,79336.0,79320.0,0.3608]
[1731273445260,0.00012645,79341.0,79327.0,0.3608]
[1731273445452,0.04622528,79340.0,79327.0,0.3608]
[1731273445759,0.00012645,79341.0,79339.0,0.423792]
[1731273445959,0.00012645,79341.0,79339.0,0.28504485]
[1731273446158,0.00012645,79341.0,79340.0,0.18994832]
[1731273446646,0.00012645,79341.0,79339.0,0.28504485]
[1731273447054,0.00012645,79341.0,79339.0,0.22205285]
[1731273447561,0.00012645,79341.0,79340.0,0.25247062]
[1731273447763,0.3608,79366.0,79348.0,0.062985]
[1731273447953,0.69248,79370.0,79348.0,0.423785]
[1731273448147,0.6916,79370.0,79348.0,0.423785]
[1731273448555,0.6916,79370.0,79348.0,0.3608]
[1731273448556,0.754568,79370.0,79348.0,0.3608]
[1731273448758,0.00015519,79369.0,79348.0,0.3608]
[1731273449064,0.36095519,79369.0,79349.0,0.06299]
[1731273449259,0.36095519,79369.0,79352.0,0.3608]
[1731273449464,0.36095519,79369.0,79367.0,0.28201325]
[1731273449660,0.36095519,79369.0,79350.0,0.18820431]
[1731273449661,0.36095519,79369.0,79353.0,0.18820431]
[1731273449961,0.36095519,79369.0,79350.0,0.37596252]
[1731273449962,0.36095519,79369.0,79350.0,0.00064]
[1731273450169,0.3608,79362.0,79337.0,0.3608]
[1731273450368,0.3608,79355.0,79337.0,0.3608]
[1731273450554,0.3608,79355.0,79341.0,0.18889903]
[1731273450859,0.62892,79362.0,79353.0,0.3608]
[1731273451056,0.00076,79362.0,79344.0,0.64281325]
[1731273451259,0.3608,79366.0,79353.0,0.3608]
[1731273451456,0.3608,79366.0,79345.0,0.18893866]
[1731273451758,0.3608,79366.0,79344.0,0.64281325]
[1731273452063,0.3608,79366.0,79346.0,0.54973866]
[1731273452260,0.3608,79358.0,79345.0,0.18800944]
[1731273452463,0.3608,79350.0,79337.0,0.40403456]
[1731273452862,0.3608,79350.0,79341.0,0.18800944]
[1731273453070,0.3608,79358.0,79342.0,0.28201325]
[1731273453466,0.3608,79368.0,79345.0,0.3608]
[1731273453765,0.3608,79368.0,79346.0,0.18979685]
[1731273454263,0.3608,79360.0,79346.0,0.18979685]
[1731273454465,0.062976,79367.0,79352.0,0.3608]
[1731273455157,0.3608,79368.0,79352.0,0.3608]
[1731273455353,0.00015519,79369.0,79352.0,0.3608]
[1731273455757,0.00015519,79369.0,79356.0,0.062984]
[1731273455955,0.00015519,79369.0,79352.0,0.3608]
[1731273455956,0.00015519,79369.0,79362.0,0.24268143]
[1731273456162,0.00015519,79369.0,79368.0,0.34498825]
[1731273456356,0.00015519,79369.0,79368.0,0.70578825]
[1731273456563,0.00015519,79369.0,79368.0,0.3608]
[1731273456874,0.00015519,79369.0,79360.0,0.00064]
[1731273457063,0.00015519,79369.0,79348.0,0.3608]
[1731273457064,0.3608,79361.0,79348.0,0.3608]
[1731273457452,0.3608,79365.0,79348.0,0.3608]
[1731273458174,0.3608,79365.0,79343.0,0.02522482]
[1731273458175,0.6608,79365.0,79343.0,0.02522482]
[1731273458356,0.3608,79353.0,79343.0,0.02522482]
[1731273458554,0.3608,79353.0,79326.0,0.6453841]
[1731273458758,0.3608,79337.0,79326.0,0.00189085]
[1731273459064,0.27621314,79336.0,79326.0,0.00189085]
[1731273459657,9.314e-05,79336.0,79328.0,0.28201325]
[1731273460063,9.314e-05,79336.0,79327.0,0.37754412]
[1731273460064,9.314e-05,79336.0,79329.0,0.18807763]
[1731273460367,0.3608,79334.0,79326.0,0.00189085]
[1731273461165,0.37816,79333.0,79320.0,0.00102]
[1731273461366,0.37816,79333.0,79306.0,0.3608]
[1731273461367,0.063012,79322.0,79306.0,0.3608]
[1731273461570,0.64281325,79328.0,79305.0,0.063024]
[1731273461571,0.75934,79321.0,79305.0,0.063024]
[1731273461766,0.75934,79321.0,79315.0,0.3608]
[1731273461767,0.28664,79321.0,79315.0,0.3608]
[1731273461964,0.3608,79330.0,79324.0,0.06301]
[1731273462266,0.3608,79330.0,79315.0,0.3608]
[1731273462267,0.2874,79337.0,79322.0,0.3608]
[1731273462461,0.28664,79337.0,79322.0,0.3608]
[1731273462659,0.063003,79333.0,79322.0,0.3608]
[1731273462862,0.28664,79337.0,79322.0,0.3608]
[1731273463073,0.3608,79334.0,79322.0,0.3608]
[1731273463458,0.28664,79337.0,79322.0,0.3608]
[1731273463858,0.28664,79337.0,79310.0,0.00012271]
[1731273464071,0.28664,79337.0,79323.0,0.063011]
[1731273464270,0.28664,79337.0,79330.0,0.3608]
[1731273464470,0.349634,79345.0,79331.0,0.3608]
[1731273465365,0.28664,79345.0,79331.0,0.3608]
[1731273465874,0.3608,79349.0,79331.0,0.3608]
[1731273466073,0.36269149,79356.0,79335.0,0.64281325]
[1731273466461,0.36269149,79356.0,79335.0,0.54875253]
[1731273466873,0.00189149,79356.0,79335.0,0.54875253]
[1731273467064,0.062986,79354.0,79335.0,0.3608]